{"text_format":"3","workbook":"xlsx","n_sheets":2,"sheets":["Début","Budget de mariage"],"read":"whole","date_system":"1900"}

{"sheet":"Début","index":0,"n_rows":7,"n_cols":2,"rows_kept":7}
[null,"À PROPOS DE CE MODÈLE"]
[null,"Utilisez ce modèle pour enregistrer vos dépenses de mariage réelles sur divers éléments et les suivre par rapport aux montants budgétés."]
[null,"Inscrivez les dépenses pour les vêtements, les décorations, les cadeaux, les fleurs, la musique, la photographie, la réception, la papeterie, le transport et les articles divers dans les tableaux respectifs."]
[null,"Le total des dépenses estimées et le total des dépenses réelles sont calculés automatiquement."]
[null,"Remarque : "]
[null,"Des instructions supplémentaires ont été fournies dans la colonne A de la feuille de calcul BUDGET MARIAGE. Ce texte a été intentionnellement masqué. Pour supprimer le texte, sélectionnez la colonne A et choisissez SUPPRIMER. Pour afficher le texte, sélectionnez la colonne A et changez la couleur de la police."]
[null,"Pour en savoir plus sur les tableaux, appuyez sur MAJ, puis sur F10 sur un tableau, et sélectionnez ensuite l’option TEXTE DE REMPLACEMENT."]

{"sheet":"Budget de mariage","index":1,"n_rows":93,"n_cols":4,"rows_kept":93,"merged":[[0,1,0,3],[2,1,2,3],[6,1,6,3],[15,1,15,3],[25,1,25,3],[34,1,34,3],[43,1,43,3],[50,1,50,3],[59,1,59,3],[68,1,68,3],[77,1,77,3],[85,1,85,3]]}
[null,"BUDGET DE MARIAGE"]
[]
[null,"TOTAL DES DÉPENSES "]
[null,"Point ","Estimé","Réel"]
[null,"Total des dépenses ",{"$f":"SUM(Vêtements[[#Totals],[Estimé]],Décorations[[#Totals],[Estimé]],Cadeaux[[#Totals],[Estimé]],Fleurs[[#Totals],[Estimé]],Musique[[#Totals],[Estimé]],Photos[[#Totals],[Estimé]],Réception[[#Totals],[Estimé]],Papier_à_lettres_et_impression[[#Totals],[Estimé]],Transport[[#Totals],[Estimé]],Autres_dépenses[[#Totals],[Estimé]])","v":0},{"$f":"SUM(Vêtements[[#Totals],[Réel]],Décorations[[#Totals],[Réel]],Cadeaux[[#Totals],[Réel]],Fleurs[[#Totals],[Réel]],Musique[[#Totals],[Réel]],Photos[[#Totals],[Réel]],Réception[[#Totals],[Réel]],Papier_à_lettres_et_impression[[#Totals],[Réel]],Transport[[#Totals],[Réel]],Autres_dépenses[[#Totals],[Réel]],)","v":0}]
[]
[null,"VÊTEMENTS ET ACCESSOIRES"]
[null,"Point ","Estimé","Réel"]
[null,"Bague de fiançailles"]
[null,"Alliances"]
[null,"Robe de mariée"]
[null,"Voile/Tiare"]
[null,"Autres :"]
[null,"Total vêtements et accessoires",{"$f":"SUBTOTAL(109,Vêtements[Estimé])","v":0},{"$f":"SUBTOTAL(109,Vêtements[Réel])","v":0}]
[]
[null,"DÉCORATION"]
[null,"Point ","Estimé","Réel"]
[null,"Rubans pour les bancs d’église/autres sièges"]
[null,"Décorations de table (sauf fleurs)"]
[null,"Bougies"]
[null,"Éclairage"]
[null,"Ballons"]
[null,"Autres :"]
[null,"Total décorations",{"$f":"SUBTOTAL(109,Décorations[Estimé])","v":0},{"$f":"SUBTOTAL(109,Décorations[Réel])","v":0}]
[]
[null,"CADEAUX"]
[null,"Point ","Estimé","Réel"]
[null,"Garçons et demoiselles d’honneur"]
[null,"Mariés"]
[null,"Parents"]
[null,"Lecteurs/autres participants"]
[null,"Autres :"]
[null,"Total cadeaux",{"$f":"SUBTOTAL(109,Cadeaux[Estimé])","v":0},{"$f":"SUBTOTAL(109,Cadeaux[Réel])","v":0}]
[]
[null,"FLEURS"]
[null,"Point ","Estimé","Réel"]
[null,"Bouquets"]
[null,"Boutonnières"]
[null,"Petits bouquets à épingler au corsage"]
[null,"Cérémonie"]
[null,"Autres :"]
[null,"Total fleurs",{"$f":"SUBTOTAL(109,Fleurs[Estimé])","v":0},{"$f":"SUBTOTAL(109,Fleurs[Réel])","v":0}]
[]
[null,"MUSIQUE"]
[null,"Point ","Estimé","Réel"]
[null,"Musiciens pour la cérémonie"]
[null,"Orchestre/DJ pour la réception"]
[null,"Autres :"]
[null,"Total musique",{"$f":"SUBTOTAL(109,Musique[Estimé])","v":0},{"$f":"SUBTOTAL(109,Musique[Réel])","v":0}]
[]
[null,"PHOTOGRAPHIE"]
[null,"Point ","Estimé","Réel"]
[null,"Poses"]
[null,"Sur le vif"]
[null,"Impressions supplémentaires"]
[null,"Albums photo"]
[null,"Autres :"]
[null,"Total photographie",{"$f":"SUBTOTAL(109,Photos[Estimé])","v":0},{"$f":"SUBTOTAL(109,Photos[Réel])","v":0}]
[]
[null,"RÉCEPTION "]
[null,"Point ","Estimé","Réel"]
[null,"Location de salle"]
[null,"Tables et chaises"]
[null,"Nourriture"]
[null,"Linge de table"]
[null,"Autres :"]
[null,"Total de la réception (hors musique et décorations)",{"$f":"SUBTOTAL(109,Réception[Estimé])","v":0},{"$f":"SUBTOTAL(109,Réception[Réel])","v":0}]
[]
[null,"PAPETERIE ET IMPRESSION"]
[null,"Point ","Estimé","Réel"]
[null,"Invitations"]
[null,"Annonces"]
[null,"Cartes de remerciement"]
[null,"Papeterie personnelle"]
[null,"Autres :"]
[null,"Total papeterie/impression",{"$f":"SUBTOTAL(109,Papier_à_lettres_et_impression[Estimé])","v":0},{"$f":"SUBTOTAL(109,Papier_à_lettres_et_impression[Réel])","v":0}]
[]
[null,"TRANSPORT"]
[null,"Point ","Estimé","Réel"]
[null,"Limousines/chariots"]
[null,"Parking"]
[null,"Taxis"]
[null,"Autres :"]
[null,"Total transport",{"$f":"SUBTOTAL(109,Transport[Estimé])","v":0},{"$f":"SUBTOTAL(109,Transport[Réel])","v":0}]
[]
[null,"AUTRES FRAIS"]
[null,"Point ","Estimé","Réel"]
[null,"Célébrant"]
[null,"Frais église/lieu de la cérémonie"]
[null,"Coordinateur du mariage"]
[null,"Dîner de répétition"]
[null,"Autres :"]
[null,"Total autres frais",{"$f":"SUBTOTAL(109,Autres_dépenses[Estimé])","v":0},{"$f":"SUBTOTAL(109,Autres_dépenses[Réel])","v":0}]